fUST/lending_fUST_20250811
["ID","MTS","AMOUNT","RATE_DAILY","PERIOD"]
[378542546,1754908278660,-460.0,0.0002201,2]
[378542547,1754908278669,-471.69535361,0.0002201,2]
[378542548,1754908278678,-460.0,0.0002201,2]
[378542549,1754908278687,-460.0,0.0002201,2]
[378542550,1754908278697,-528.69,0.0002201,2]
[378542551,1754908278706,-460.0,0.0002201,2]
[378542552,1754908278715,-460.0,0.0002201,2]
[378542553,1754908278726,-460.0,0.0002201,2]
[378542554,1754908278737,-460.0,0.0002201,2]
[378542555,1754908278747,-460.0,0.0002201,2]
[378542556,1754908278757,-399.51182063,0.0002201,2]
[378542557,1754908278767,-771.15,0.0002201,2]
[378542558,1754908278777,-2043.63,0.0002201,2]
[378542559,1754908278787,-460.0,0.0002201,2]
[378542560,1754908278797,-460.0,0.0002201,2]
[378542561,1754908278807,-460.0,0.0002201,2]
[378542562,1754908278816,-1204.15,0.0002201,2]
[378542563,1754908278826,-460.0,0.0002201,2]
[378542564,1754908278835,-460.0,0.0002201,2]
[378542565,1754908278845,-460.0,0.0002201,2]
[378542566,1754908278854,-460.0,0.0002201,2]
[378542567,1754908278864,-460.0,0.0002201,2]
[378542568,1754908278873,-460.0,0.0002201,2]
[378542569,1754908278882,-460.0,0.0002201,2]
[378542570,1754908278891,-460.0,0.0002201,2]
[378542571,1754908278901,-470.35467935,0.0002201,2]
[378542572,1754908278910,-460.0,0.0002201,2]
[378542573,1754908278920,-500.71,0.0002201,2]
[378542574,1754908278930,-384.51621704,0.0002201,2]
[378542575,1754908278940,-447.87463979,0.0002201,2]
[378542576,1754908278950,-3394.36,0.0002201,2]
[378542577,1754908278959,-460.0,0.0002201,2]
[378542578,1754908278969,-380.406493,0.0002201,2]
[378542579,1754908278978,-201.16551239,0.0002201,2]
[378542580,1754908278988,-795.91,0.0002201,2]
[378542581,1754908278999,-460.0,0.0002201,2]
[378542582,1754908279010,-460.0,0.0002201,2]
[378542583,1754908279019,-460.0,0.0002201,2]
[378542584,1754908279029,-460.0,0.0002201,2]
[378542585,1754908279039,-460.0,0.0002201,2]
[378542586,1754908279048,-460.0,0.0002201,2]
[378542587,1754908279058,-971.31,0.0002201,2]
[378542588,1754908279068,-460.0,0.0002201,2]
[378542589,1754908279077,-988.42,0.0002201,2]
[378542590,1754908279086,-460.0,0.0002201,2]
[378542591,1754908279096,-460.0,0.0002201,2]
[378542592,1754908279106,-601.41,0.0002201,2]
[378542593,1754908279115,-713.32,0.0002201,2]
[378542594,1754908279125,-460.0,0.0002201,2]
[378542595,1754908279136,-460.0,0.0002201,2]
[378542596,1754908279146,-736.45,0.0002201,2]
[378542597,1754908279157,-6406.99,0.00022056,2]
[378542598,1754908279167,-381.08,0.00022094,2]
[378542599,1754908279177,-262.4,0.00022097,2]
[378542600,1754908279186,-460.0,0.000221,2]
[378542601,1754908279195,-460.0,0.000221,2]
[378542602,1754908279205,-460.0,0.000221,2]
[378542603,1754908279214,-460.0,0.000221,2]
[378542604,1754908279225,-964.35,0.000221,2]
[378542605,1754908279235,-460.0,0.000221,2]
[378542606,1754908279244,-460.0,0.000221,2]
[378542607,1754908279254,-573.10512668,0.000221,2]
[378542608,1754908279263,-505.05083742,0.000221,2]
[378542609,1754908279272,-460.0,0.000221,2]
[378542610,1754908279282,-460.0,0.000221,2]
[378542611,1754908279290,-460.0,0.000221,2]
[378542612,1754908279300,-460.0,0.000221,2]
[378542613,1754908279310,-940.53,0.000221,2]
[378542614,1754908279319,-460.0,0.000221,2]
[378542615,1754908279332,-460.0,0.000221,2]
[378542616,1754908279342,-176.08252488,0.000221,2]
[378542617,1754908279351,-460.0,0.000221,2]
[378542618,1754908279360,-1026.17,0.000221,2]
[378542619,1754908279370,-460.0,0.000221,2]
[378542620,1754908279379,-460.0,0.000221,2]
[378542621,1754908279389,-500.0,0.000221,2]
[378542622,1754908279398,-460.0,0.000221,2]
[378542623,1754908279408,-460.0,0.000221,2]
[378542624,1754908279418,-460.0,0.000221,2]
[378542625,1754908279427,-460.0,0.000221,2]
[378542626,1754908279436,-460.0,0.000221,2]
[378542627,1754908279445,-862.5,0.000221,2]
[378542628,1754908279455,-460.0,0.000221,2]
[378542629,1754908279464,-460.0,0.000221,2]
[378542630,1754908279473,-506.33,0.000221,2]
[378542631,1754908279483,-460.0,0.000221,2]
[378542632,1754908279493,-460.0,0.000221,2]
[378542633,1754908279502,-460.0,0.000221,2]
[378542634,1754908279511,-460.0,0.000221,2]
[378542635,1754908279521,-541.67,0.000221,2]
[378542636,1754908279530,-460.0,0.000221,2]
[378542637,1754908279539,-460.0,0.000221,2]
[378542638,1754908279549,-460.0,0.000221,2]
[378542639,1754908279559,-460.0,0.000221,2]
[378542640,1754908279569,-460.0,0.000221,2]
[378542641,1754908279581,-460.0,0.000221,2]
[378542642,1754908279591,-460.0,0.000221,2]
[378542643,1754908279601,-460.0,0.000221,2]
[378542644,1754908279610,-460.0,0.000221,2]
[378542645,1754908279619,-599.36,0.000221,2]
[378542646,1754908279628,-460.0,0.000221,2]
[378542647,1754908279639,-518.54439976,0.000221,2]
[378542648,1754908279648,-460.0,0.000221,2]
[378542649,1754908279657,-460.0,0.000221,2]
[378542650,1754908279828,-460.0,0.000221,2]
[378542651,1754908279838,-460.0,0.000221,2]
[378542652,1754908279847,-460.0,0.000221,2]
[378542653,1754908279856,-567.57,0.000221,2]
[378542654,1754908279865,-460.0,0.000221,2]
[378542655,1754908279875,-853.0,0.000221,2]
[378542656,1754908279884,-506.56972907,0.000221,2]
[378542657,1754908279893,-460.0,0.000221,2]
[378542658,1754908279903,-1715.38,0.000221,2]
[378542659,1754908279913,-460.0,0.000221,2]
[378542660,1754908279922,-460.0,0.000221,2]
[378542661,1754908279932,-460.0,0.000221,2]
[378542662,1754908279946,-460.0,0.000221,2]
[378542663,1754908279956,-460.0,0.000221,2]
[378542664,1754908279966,-460.0,0.000221,2]
[378542665,1754908279976,-460.0,0.000221,2]
[378542666,1754908279986,-460.0,0.000221,2]
[378542667,1754908279996,-460.0,0.000221,2]
[378542668,1754908280007,-1777.53,0.000221,2]
[378542669,1754908280017,-563.56,0.000221,2]
[378542670,1754908280028,-460.0,0.000221,2]
[378542671,1754908280039,-460.0,0.000221,2]
[378542672,1754908280050,-460.0,0.000221,2]
[378542673,1754908280060,-469.26,0.000221,2]
[378542674,1754908280071,-460.0,0.000221,2]
[378542675,1754908280081,-1144.23,0.000221,2]
[378542676,1754908280091,-460.0,0.000221,2]
[378542677,1754908280102,-460.0,0.000221,2]
[378542678,1754908280112,-460.0,0.000221,2]
[378542679,1754908280122,-690.0,0.000221,2]
[378542680,1754908280133,-460.0,0.000221,2]
[378542681,1754908280143,-463.68,0.000221,2]
[378542682,1754908280153,-960.43,0.000221,2]
[378542683,1754908280163,-460.0,0.000221,2]
[378542684,1754908280173,-460.0,0.000221,2]
[378542685,1754908280183,-460.0,0.000221,2]
[378542686,1754908280193,-460.0,0.000221,2]
[378542687,1754908280203,-460.0,0.000221,2]
[378542688,1754908280213,-460.0,0.000221,2]
[378542689,1754908280223,-460.0,0.000221,2]
[378542690,1754908280234,-460.0,0.000221,2]
[378542691,1754908280244,-460.0,0.000221,2]
[378542692,1754908280255,-616.43,0.000221,2]
[378542693,1754908280265,-460.0,0.000221,2]
[378542694,1754908280276,-460.0,0.000221,2]
[378542695,1754908280287,-460.0,0.000221,2]
[378542696,1754908280297,-460.0,0.000221,2]
[378542697,1754908280309,-460.0,0.000221,2]
[378542698,1754908280319,-599.29,0.000221,2]
[378542699,1754908280332,-460.0,0.000221,2]
[378542700,1754908280342,-460.0,0.000221,2]
[378542701,1754908280352,-538.36,0.000221,2]
[378542702,1754908280363,-327.33163279,0.000221,2]
[378542703,1754908283966,926.79305447,0.00019456,2]
[378542704,1754908284941,15247.73511093,0.00019897,2]
[378542705,1754908284965,20000.0,0.00019897,2]
[378542706,1754908284988,20000.0,0.00019897,2]
[378542707,1754908285011,20000.0,0.00019897,2]
[378542708,1754908285034,20000.0,0.00019897,2]
[378542709,1754908285057,20000.0,0.00019897,2]
[378542710,1754908285080,20000.0,0.00019897,2]
[378542711,1754908285104,20000.0,0.00019897,2]
[378542712,1754908285127,20000.0,0.00019897,2]
[378542713,1754908285150,20000.0,0.00019897,2]
[378542714,1754908285172,20000.0,0.00019897,2]
[378542715,1754908285194,20000.0,0.00019897,2]
[378542716,1754908285216,20000.0,0.00019897,2]
[378542717,1754908285238,20000.0,0.00019897,2]
[378542718,1754908285261,20000.0,0.00019897,2]
[378542719,1754908285284,20000.0,0.00019897,2]
[378542720,1754908285307,20000.0,0.00019897,2]
[378542721,1754908285331,20000.0,0.00019897,2]
[378542722,1754908285355,14752.26488907,0.00019897,2]
[378542723,1754908289701,5247.73511093,0.000199,2]
[378542724,1754908289727,2409.77697382,0.000199,2]
[378542725,1754908299942,5000.0,0.00019901,2]
[378542726,1754908315464,5000.0,0.00019901,2]
[378542727,1754908316063,-171.30796911,0.0001994,2]
[378542728,1754908330538,5000.0,0.00019901,2]
[378542729,1754908330677,185.59795936,0.00019894,2]
[378542730,1754908345773,2404.62506682,0.00019901,2]
[378542733,1754908404829,437.772478,0.00013699,2]
[378542735,1754908434084,-163.1285328,0.0001984,2]
[378542736,1754908446083,150.52844408,8.3e-07,2]
[378542737,1754908446225,150.52844408,8.3e-07,2]
[378542738,1754908446350,150.52844408,8.3e-07,2]
[378542739,1754908446530,150.52844408,8.3e-07,2]
[378542740,1754908446655,150.52844408,8.3e-07,2]
[378542741,1754908446750,150.52844408,8.3e-07,2]
[378542742,1754908447032,150.52844408,8.3e-07,2]
[378542743,1754908447139,150.52844408,8.3e-07,2]
[378542744,1754908447265,150.52844408,8.3e-07,2]
[378542745,1754908462821,157.27809572,0.00019107,2]
[378542746,1754908462842,18.34508228,0.00019107,2]
[378542747,1754908481072,-152.0,0.00019701,2]
[378542748,1754908483256,-177.19317094,0.00019701,2]
[378542749,1754908485974,-253.04556921,0.00019701,2]
[378542750,1754908486948,3883.7399744,0.00018992,2]
[378542751,1754908489032,-4358.13900269,0.00019701,2]
[378542752,1754908496985,210.35256253,0.000198,2]
[378542753,1754908518238,1080.21654923,0.000198,2]
[378542754,1754908527902,9993.15288286,0.00019145,2]
[378542755,1754908527925,2232.46028254,0.00019145,2]
[378542756,1754908532133,5000.0,0.0001984,2]
[378542757,1754908533043,197.82291036,0.000198,2]
[378542758,1754908538416,166.078837,0.00018969,2]
[378542759,1754908538605,166.078837,0.00019007,2]
[378542760,1754908538807,166.078837,0.00019045,2]
[378542761,1754908539203,166.078837,0.00019083,2]
[378542762,1754908539416,166.078837,0.00019121,2]
[378542763,1754908539619,166.078837,0.00019159,2]
[378542764,1754908549546,5000.0,0.0001984,2]
[378542765,1754908565233,5000.0,0.0001984,2]
[378542766,1754908580822,1573.2437851,0.0001984,2]
[378542767,1754908580859,3426.7562149,0.0001984,2]
[378542768,1754908597452,5000.0,0.0001984,2]
[378542769,1754908613011,5000.0,0.0001984,2]
[378542770,1754908628973,5000.0,0.0001984,2]
[378542771,1754908633376,197.82291034,0.00019799,2]
[378542772,1754908644258,1375.42087476,0.0001984,2]
[378542773,1754908644280,3624.57912524,0.0001984,2]
[378542792,1754908661012,5000.0,0.0001984,2]
[378542793,1754908663271,171.54027768,0.00019863,2]
[378542794,1754908664537,-7.65144232,0.00019863,2]
[378542795,1754908676735,4680.94536225,0.0001984,2]
[378542797,1754908735367,197.82291034,0.00019799,2]
[378542802,1754908756946,666.0,0.00019178,2]
[378542806,1754908781902,250.0,0.00018724,2]
[378542808,1754908791564,302.78807257,0.00019787,2]
[378542809,1754908794270,453.582798,0.00019303,2]
[378542810,1754908794631,737.44389292,0.00019373,2]
[378542824,1754908928356,502.33564512,0.00019701,2]
[378542833,1754908966371,3584.50219356,0.00018954,2]
[378542834,1754908966394,20000.0,0.00018954,2]
[378542835,1754908966417,1315.49780644,0.00018954,2]
[378542859,1754909026332,1002.9121019,0.00018917,2]
[378542868,1754909049671,1000.4757246,0.00018917,2]
[378542881,1754909085590,3999.59765669,0.00019178,2]
[378542882,1754909088005,1447.0665182,0.00018917,2]
[378542891,1754909108991,1377.945098,0.00018936,2]
[378542909,1754909137716,9856.50509417,0.00018917,2]
[378542910,1754909137739,20000.0,0.00018917,2]
[378542911,1754909137761,20000.0,0.00018917,2]
[378542912,1754909137783,19326.43870393,0.00018917,2]
[378542919,1754909145033,302.8183302,0.000189,2]
[378542920,1754909145066,302.8183302,0.00019089,2]
[378542921,1754909145103,67.92463567,0.00019278,2]
[378542922,1754909145125,234.89369453,0.00019278,2]
[378542923,1754909145152,302.8183302,0.00019467,2]
[378542924,1754909145184,302.8183302,0.00019656,2]
[378542925,1754909145627,-164.28023376,0.00019845,4]
[378542926,1754909147658,-173.36761038,0.00019845,4]
[378542929,1754909149224,-116.39813562,0.00019845,4]
[378542937,1754909167650,822.76772,0.00030137,120]
[378542946,1754909195591,10000.0,0.00018897,2]
[378542948,1754909212658,201.39302541,0.000196,2]
[378542966,1754909267485,4842.79157131,0.00019178,2]
[378542970,1754909308553,200.2359023,0.00018896,2]
[378542971,1754909316239,202.33595677,0.00019705,2]
[378542972,1754909329548,1814.5681321,0.000198,2]
[378543010,1754909432438,-544.32532797,0.00019888,3]
[378543011,1754909432451,-134.07467203,0.00019888,3]
[378543012,1754909432461,-173.36815709,0.00019888,3]
[378543013,1754909432482,-165.83184291,0.00019888,3]
[378543015,1754909432492,-169.6,0.00019888,3]
[378543017,1754909432500,-508.81,0.00019888,3]
[378543019,1754909432509,-1200.0,0.00019891,2]
[378543021,1754909432519,-300.0,0.00019892,2]
[378543023,1754909432528,-300.0,0.00019892,2]
[378543024,1754909432537,-300.0,0.00019892,2]
[378543025,1754909432547,-300.0,0.00019892,2]
[378543026,1754909432556,-300.0,0.00019892,2]
[378543027,1754909432566,-460.0,0.00019892,2]
[378543028,1754909432575,-460.0,0.00019892,2]
[378543029,1754909432585,-460.0,0.00019892,2]
[378543031,1754909432594,-50000.0,0.00019893,2]
[378543032,1754909432604,-500.0,0.00019893,2]
[378543033,1754909432614,-500.0,0.00019893,2]
[378543034,1754909432623,-500.0,0.00019893,2]
[378543035,1754909432632,-500.0,0.00019893,2]
[378543036,1754909432642,-500.0,0.00019893,2]
[378543037,1754909432651,-500.0,0.00019893,2]
[378543038,1754909432661,-500.0,0.00019893,2]
[378543039,1754909432670,-500.0,0.00019893,2]
[378543040,1754909432682,-500.0,0.00019893,2]
[378543041,1754909432691,-306.17661597,0.00019893,2]
[378543043,1754909432701,-256.4355749,0.00019893,2]
[378543045,1754909432710,-500.0,0.00019893,2]
[378543047,1754909432721,-500.0,0.00019893,2]
[378543048,1754909432731,-500.0,0.00019893,2]
[378543050,1754909432740,-500.0,0.00019893,2]
[378543056,1754909432799,-500.0,0.00019893,2]
[378543057,1754909432809,-500.0,0.00019893,2]
[378543059,1754909432818,-500.0,0.00019893,2]
[378543061,1754909432827,-500.0,0.00019893,2]
[378543063,1754909432836,-500.0,0.00019893,2]
[378543065,1754909432846,-500.0,0.00019893,2]
[378543066,1754909432855,-500.0,0.00019893,2]
[378543068,1754909432864,-500.0,0.00019893,2]
[378543069,1754909432873,-500.0,0.00019893,2]
[378543070,1754909432882,-500.0,0.00019893,2]
[378543071,1754909432892,-500.0,0.00019893,2]
[378543072,1754909432901,-500.0,0.00019893,2]
[378543073,1754909432910,-500.0,0.00019893,2]
[378543074,1754909432919,-500.0,0.00019893,2]
[378543075,1754909432929,-500.0,0.00019893,2]
[378543076,1754909432938,-500.0,0.00019893,2]
[378543077,1754909432947,-500.0,0.00019893,2]
[378543078,1754909432957,-500.0,0.00019893,2]
[378543079,1754909432966,-468.21244737,0.00019893,2]
[378543080,1754909432975,-500.0,0.00019893,2]
[378543081,1754909432984,-460.0,0.00019893,2]
[378543082,1754909432994,-460.0,0.00019893,2]
[378543083,1754909433003,-493.14606129,0.00019893,2]
[378543084,1754909433013,-460.0,0.00019893,2]
[378543085,1754909433022,-460.0,0.00019893,2]
[378543086,1754909433032,-460.0,0.00019893,2]
[378543087,1754909433042,-460.0,0.00019893,2]
[378543088,1754909433051,-460.0,0.00019893,2]
[378543089,1754909433061,-460.0,0.00019893,2]
[378543090,1754909433071,-17732.78644411,0.00019894,2]
[378543091,1754909433080,-29265.48730402,0.00019894,2]
[378543092,1754909433091,-1200.0,0.00019895,2]
[378543093,1754909433101,-460.0,0.00019896,2]
[378543094,1754909433110,-461.13613122,0.00019896,2]
[378543095,1754909433119,-460.0,0.00019896,2]
[378543096,1754909433130,-503.23,0.00019896,2]
[378543097,1754909433140,-1113.87,0.00019896,2]
[378543098,1754909433150,-460.0,0.00019897,2]
[378543099,1754909433159,-460.0,0.00019897,2]
[378543100,1754909433169,-460.0,0.00019897,2]
[378543101,1754909433179,-460.0,0.00019897,2]
[378543102,1754909433188,-460.0,0.00019897,2]
[378543103,1754909433198,-465.18719775,0.00019897,2]
[378543104,1754909433207,-460.0,0.00019897,2]
[378543105,1754909433217,-460.0,0.00019897,2]
[378543106,1754909433228,-563.93,0.00019897,2]
[378543107,1754909433238,-460.0,0.00019897,2]
[378543108,1754909433248,-460.0,0.00019897,2]
[378543109,1754909433258,-460.0,0.00019897,2]
[378543110,1754909433268,-528.4464115,0.00019897,2]
[378543111,1754909433278,-460.0,0.00019897,2]
[378543112,1754909433288,-460.0,0.00019897,2]
[378543113,1754909433298,-460.0,0.00019897,2]
[378543114,1754909433308,-460.0,0.00019897,2]
[378543115,1754909433317,-460.0,0.00019897,2]
[378543116,1754909433327,-460.0,0.00019897,2]
[378543117,1754909433336,-460.0,0.00019897,2]
[378543118,1754909433345,-460.0,0.00019897,2]
[378543119,1754909433354,-460.0,0.00019897,2]
[378543120,1754909433364,-460.0,0.00019897,2]
[378543121,1754909433374,-460.0,0.00019897,2]
[378543122,1754909433383,-460.0,0.00019897,2]
[378543123,1754909433393,-460.0,0.00019897,2]
[378543124,1754909433402,-460.0,0.00019897,2]
[378543125,1754909433412,-460.0,0.00019897,2]
[378543126,1754909433421,-460.0,0.00019897,2]
[378543127,1754909433431,-460.0,0.00019897,2]
[378543128,1754909433440,-439.09150514,0.00019897,2]
[378543129,1754909433449,-460.0,0.00019897,2]
[378543130,1754909433459,-564.82530948,0.00019897,2]
[378543131,1754909433468,-460.0,0.00019897,2]
[378543132,1754909433477,-460.0,0.00019897,2]
[378543133,1754909433487,-460.0,0.00019897,2]
[378543134,1754909433497,-462.40033359,0.00019897,2]
[378543135,1754909433507,-460.0,0.00019897,2]
[378543136,1754909433516,-460.0,0.00019897,2]
[378543137,1754909433526,-460.0,0.00019897,2]
[378543138,1754909433535,-460.0,0.00019897,2]
[378543139,1754909433547,-460.0,0.00019897,2]
[378543140,1754909433557,-460.0,0.00019897,2]
[378543141,1754909433566,-460.0,0.00019897,2]
[378543142,1754909433575,-460.0,0.00019897,2]
[378543143,1754909433585,-791.87,0.00019897,2]
[378543144,1754909433594,-716.86,0.00019897,2]
[378543145,1754909433604,-460.0,0.00019897,2]
[378543146,1754909433613,-460.0,0.00019897,2]
[378543147,1754909433623,-460.0,0.00019897,2]
[378543148,1754909433633,-460.0,0.00019897,2]
[378543149,1754909433643,-460.0,0.00019897,2]
[378543150,1754909433652,-460.0,0.00019897,2]
[378543151,1754909433661,-460.0,0.00019897,2]
[378543152,1754909433672,-460.0,0.00019897,2]
[378543153,1754909433682,-505.46,0.00019897,2]
[378543154,1754909433691,-460.0,0.00019897,2]
[378543155,1754909433701,-460.0,0.00019897,2]
[378543156,1754909433710,-460.0,0.00019897,2]
[378543157,1754909433722,-460.0,0.00019897,2]
[378543158,1754909433732,-460.0,0.00019897,2]
[378543159,1754909433742,-556.41,0.00019897,2]
[378543160,1754909433753,-460.0,0.00019897,2]
[378543161,1754909433762,-460.0,0.00019897,2]
[378543162,1754909433772,-460.0,0.00019897,2]
[378543163,1754909433782,-460.0,0.00019897,2]
[378543164,1754909433792,-472.35261588,0.00019897,2]
[378543165,1754909433802,-460.0,0.00019897,2]
[378543166,1754909433811,-460.0,0.00019897,2]
[378543167,1754909433821,-460.0,0.00019897,2]
[378543168,1754909433830,-460.0,0.00019897,2]
[378543169,1754909433839,-460.0,0.00019897,2]
[378543170,1754909433850,-460.0,0.00019897,2]
[378543171,1754909433859,-460.0,0.00019897,2]
[378543172,1754909433868,-460.0,0.00019897,2]
[378543173,1754909433878,-460.0,0.00019897,2]
[378543174,1754909433887,-460.0,0.00019897,2]
[378543175,1754909433896,-460.0,0.00019897,2]
[378543176,1754909433906,-460.0,0.00019897,2]
[378543177,1754909433915,-460.0,0.00019897,2]
[378543178,1754909433924,-460.0,0.00019897,2]
[378543179,1754909433935,-460.0,0.00019897,2]
[378543180,1754909433945,-460.0,0.00019897,2]
[378543181,1754909433955,-312.77667977,0.00019897,2]
[378543182,1754909433964,-460.0,0.00019897,2]
[378543183,1754909433974,-377.1725896,0.00019898,2]
[378543184,1754909433984,-919.74,0.00019898,2]
[378543185,1754909433994,-604.05,0.00019898,2]
[378543186,1754909434004,-460.0,0.00019898,2]
[378543187,1754909434014,-460.0,0.00019898,2]
[378543188,1754909434024,-460.0,0.00019898,2]
[378543189,1754909434034,-460.0,0.00019898,2]
[378543190,1754909434045,-2971.75,0.00019898,2]
[378543191,1754909434055,-460.0,0.00019898,2]
[378543192,1754909434065,-539.5,0.00019898,2]
[378543193,1754909434075,-460.0,0.00019898,2]
[378543194,1754909434084,-2934.83,0.00019898,2]
[378543195,1754909434094,-1133.48,0.00019898,2]
[378543196,1754909434104,-460.0,0.00019898,2]
[378543197,1754909434114,-460.0,0.00019898,2]
[378543198,1754909434124,-760.67,0.00019898,2]
[378543199,1754909434134,-998.01,0.00019898,2]
[378543200,1754909434144,-4735.84,0.00019898,2]
[378543201,1754909434154,-460.0,0.00019898,2]
[378543202,1754909434163,-460.0,0.00019898,2]
[378543203,1754909434174,-460.0,0.00019898,2]
[378543204,1754909434183,-460.0,0.00019898,2]
[378543205,1754909434193,-460.0,0.00019898,2]
[378543206,1754909434203,-460.0,0.00019898,2]
[378543207,1754909434212,-661.54,0.00019898,2]
[378543208,1754909434222,-500.0,0.000199,2]
[378543209,1754909434232,-30044.01588687,0.000199,2]
[378543210,1754909434241,-151.0,0.000199,2]
[378543211,1754909434251,-12188.73319599,0.000199,2]
[378543212,1754909434261,-3061.39337174,0.0001991,2]
[378543213,1754909434548,-2806.98567943,0.0001991,2]
[378543214,1754909434558,-1454.52933077,0.00019937,2]
[378543215,1754909434569,-360.03880132,0.00019937,2]
[378543216,1754909434579,-501.0,0.0001994,2]
[378543217,1754909434588,-465.1512156,0.0001994,2]
[378543218,1754909434604,-33.84878441,0.0001994,2]
[378543219,1754909434614,-251.93,0.00019963,3]
[378543220,1754909434623,-755.79,0.00019963,3]
[378543221,1754909434633,-460.0,0.00019972,2]
[378543222,1754909434642,-460.0,0.00019972,2]
[378543223,1754909434652,-460.0,0.00019972,2]
[378543224,1754909434662,-460.0,0.00019972,2]
[378543225,1754909434672,-460.0,0.00019972,2]
[378543226,1754909434682,-460.0,0.00019972,2]
[378543227,1754909434692,-460.0,0.00019972,2]
[378543228,1754909434702,-460.0,0.00019972,2]
[378543229,1754909434712,-460.0,0.00019972,2]
[378543230,1754909434723,-460.0,0.00019972,2]
[378543231,1754909434733,-840.61121559,0.00019972,2]
[378543274,1754909438143,-460.0,0.00019892,2]
[378543276,1754909438152,-1517.22476787,0.00019899,2]
[378543277,1754909438162,-607.3535987,0.00019899,2]
[378543279,1754909438172,-1517.22476787,0.00019899,2]
[378543281,1754909438182,-1517.22476787,0.00019899,2]
[378543283,1754909438192,-1517.22476787,0.00019899,2]
[378543285,1754909438202,-1517.22476787,0.00019899,2]
[378543286,1754909438211,-1517.22476787,0.00019899,2]
[378543287,1754909438221,-1517.22476787,0.00019899,2]
[378543289,1754909438231,-1517.22476787,0.00019899,2]
[378543291,1754909438241,-1517.22476787,0.00019899,2]
[378543292,1754909438250,-1517.22476787,0.00019899,2]
[378543294,1754909438260,-1517.22476787,0.00019899,2]
[378543296,1754909438270,-1517.22476787,0.00019899,2]
[378543298,1754909438280,-1517.22476787,0.00019899,2]
[378543299,1754909438289,-1517.22476787,0.00019899,2]
[378543301,1754909438300,-1517.22476787,0.00019899,2]
[378543302,1754909438309,-1517.22476787,0.00019899,2]
[378543304,1754909438319,-1517.22476787,0.00019899,2]
[378543306,1754909438329,-1517.22476787,0.00019899,2]
[378543308,1754909438338,-1517.22476787,0.00019899,2]
[378543310,1754909438347,-1517.22476787,0.00019899,2]
[378543312,1754909438357,-1517.22476787,0.00019899,2]
[378543313,1754909438366,-1517.22476787,0.00019899,2]
[378543314,1754909438377,-363.37878441,0.00019972,2]
[378543315,1754909438386,-750.47,0.00019972,2]
[378543317,1754909438396,-460.0,0.00019972,2]
[378543318,1754909438405,-460.0,0.00019972,2]
[378543320,1754909438415,-460.0,0.00019972,2]
[378543322,1754909438425,-460.0,0.00019972,2]
[378543324,1754909438435,-460.0,0.00019972,2]
[378543325,1754909438445,-460.0,0.00019972,2]
[378543326,1754909438454,-460.0,0.00019972,2]
[378543327,1754909438464,-460.0,0.00019972,2]